Workbook

Sheet LABORALS
A2: NOM
A3: TIPUS CONTRACTE
A4: DEDICACIÓ | B4: 35 | C4: =IF(ValLAB!L24=3,"Posar dedicació 35 hores",IF(ValLAB!L24=4,"Posar dedicació a temps parcial","TP: posar les hores setmanals de dedicació / TC: posar 35 hores")) -> TP: posar les hores setmanals de dedicació / TC: posar 35 hores
A5: DATA ANY INICI VINCULACIÓ | B5: 2026-01-01 | D5: FI CONTRACTE/PRORROGA | E5: 2026-12-31
A6: INICI CONTRACTE/PRORROGA | B6: 2025-10-01 | D6: Possar el número de triennis de grup 1
A7: Grup: | B7: 1900-01-03 | D7: Possar el número de triennis de grup 2,3
A8: CLT: | B8: 1900-02-04 | D8: IMPORT TRIENNIS | E8: =((E6*ValLAB!F3)+(E7*ValLAB!F4))*(B4/35)*ValLAB!M28 -> 0
A9: Nº Dies RD | B9: 20
A10: COST MENSUAL
A12: Retribucions: | B12: =SUM(B13:B16) -> 2846.89
A13: Sou | B13: =(ValLAB!M22)*B4/35*ValLAB!M28 -> 2650.1
A14: Acord mesa | B14: =(ValLAB!P22)*B4/35*ValLAB!M28 -> 8.58
A15: Millora | B15: =(ValLAB!N22)*B4/35*ValLAB!M28 -> 17.63
A16: clt | B16: =ValLAB!M24*'LABORALS '!B4/35*ValLAB!M28 -> 170.58
A18: Prorrata mensual extres | B18: =ValLAB!M22*2/12*B4/35*ValLAB!M28 -> 441.6833333
A19: Prorrata mensual triennis extres | B19: =E8*2/12*ValLAB!M28 -> 0
A20: TOTAL PRORRATA | B20: =SUM(B18:B19) -> 441.6833333
A22: Triennis: | B22: =SUM(E8) -> 0
A24: TOTAL RETRIBUCIONS | B24: =SUM(B12+B20+B22) -> 3288.573333
A25: Indemnització RD
A26: Quota patronal | B26: =IF(B24>ValLAB!N16,ValLAB!N26*4139.4,B24*ValLAB!N26) -> 1057.276327
A27: TOTAL COST | B27: =SUM(B24:B26) -> 4345.84966
A29: COST PERIODE DEMANAT | B29: =CONCATENATE(B2," (",DAY(B6),"/",MONTH(B6),"/",YEAR(B6),"-",DAY(E5),"/",MONTH(E5),"/",YEAR(E5),")") -> (1/10/2025-31/12/2026)
A31: Retribucions: | B31: =IF(B12=0,0,B12*(E33+(E34/30))) -> 42703.35 | D31: PERIODE DEMANAT
A33: TOTAL EXTRES: | B33: =SUM(B34:B35) -> 6625.25 | D33: nº mesos | E33: =IF((E5-B6)>0,'calcul dies'!L5,"ERROR DATES") -> 15
A34: Extra juny | B34: =IF(B20=0," ",B20/2*(E33+(E34/30))) -> 3312.625 | D34: nº dies | E34: =IF((E5-B6)>0,'calcul dies'!N5," ") -> 0
A35: Extra desembre | B35: =IF(B20=0," ",(B20/2)*(E33+E34/30)) -> 3312.625
A37: Triennis: | B37: =IF(B22=0,0,B22*(E33+E34/30)) -> 0
A39: TOTAL RETRIB. | B39: =IF(B31=0,0,SUM(B31+B33+B37)) -> 49328.6
A40: Indemnització RD | B40: =IF(B25=0,0,B25*(E33+E34/30)) -> 0
A41: Quota patronal | B41: =IF(B24>ValLAB!N16,B26*(E33+(E34/30)),B39*ValLAB!N26) -> 15859.1449
A42: TOTAL COST | B42: =SUM(B39:B41) -> 65187.7449

Sheet Manual d'ús
A2: Què es aquest fitxer?
A3: És un simulador que us permet obtenir la distribució previsible de la despesa d'una contractació.
A5: Per a què serveix?
A6: Per a que el personal interessat en iniciar un procediment de contractació pugui preveure els costos de personal d'acord amb les seves necessitats
A8: Com funciona?
A9: Heu d'emplenar els camps en blanc de la zona blava
A11: Quin grup escollir?
A12: El grup depèn de les funcions que desenvolupi el/la treballador/a.
A13: A continuació us facilitem un quadre on es recullen les diferents possibilitats de manera resumida:
A14: Grup 1: | B14: Funcions de Llicenciats/des, Enginyers/es, Arquitectes i Doctors/es.
A15: Grup 2: | B15: Funcions de Diplomats/es, Enginyers/es Tècnics/ques
A16: Grup 3: | B16: Batxiller, FPII, CFGS.
A18: Quin complement de lloc de treball (CLT) escollir?
A19: El CLT és un dels 3 complements que intervenen en la retribució del personal laboral (sou i millora serien la resta)
A20: A les següents possibilitats podreu triar la que us interessi més:
A21: Grup 1: | B21: De la U (el mínim) a la A (el màxim).
A22: Grup 2: | B22: De la U a la D.
A23: Grup 3: | B23: De la U a la K.

Sheet Condicions pràctiques
A1: 1. | B1: El lloc de treball haurà de permetre la obtenció de la pràctica professional adequada al nivell d’estudis cursats, de manera que les tasques objecte del contracte hauran d’anar acordes amb la mateixa. Per aquest motiu, si s’escau, les convocatòries dels concursos hauran de delimitar les titulacions concretes exigibles com a condició, no com a mèrit
A2: 2. | B2: Han d’haver transcorregut un màxim de tres anys des de l’obtenció de la titulació (no titulació estrangeres) per la qual haurà de ser contractada la persona o cinc anys en el cas de persones amb la condició de discapacitades, en el moment d’inici de la contractació.
A3: 3. | B3: Les titulacions que habiliten per a la formalització d’un contracte en pràctiques, tenint en compte la classificació professional a la UPC són:
B4: a. Enginyeria o Llicenciatura: Grup I
B5: b. Enginyeria Tècnica o Diplomatura: Grup II
B6: c. Cicles Formatius de Grau Superior o FPII: Grup III
A7: 4. | B7: La persona contractada haurà d’estar en possessió del títol o del rebut d’haver abonat les tasses per a la seva expedició. Les certificacions acadèmiques o similars no són habilitants per a la realització d’aquest contracte.
A8: 5. | B8: La durada mínima inicial del contracte serà de sis mesos. La durada màxima d'un any.
A9: 6. | B9: No es podrà subscriure en la mateixa o diferent empresa pel temps superior fixat en virtut de la mateixa titulació o certificat professional. Tampoc es podrà contractar en la mateixa empresa, pel mateix lloc de treball pel temps superior a els màxims previstos, tot i que es tracti de diferent titulació o certificat. NOTA: Si han gaudit d’un contracte en pràctiques (anterior a la reforma laboral) es té en compte, ja que són de la mateixa naturalesa
A10: 7. | B10: L’obtenció d’un nou títol habilita per a una nova contractació en formació per a l'obtenció de la pràctica professional
A11: 8. | B11: Les retribucions pels temps de treball efectiu seran les fixades en el conveni col·lectiu aplicable a la empresa per aquests contractes o en el seu defecte la del grup professional i nivell retributiu corresponent a les funcions desenvolupades
A12: 9. | B12: L’empresa elaborarà un pla formatiu individual detallant el contingut de la pràctica professional i assignarà un tutor. El treballador/a té dret a la certificació de la pràctica realitzada

Sheet ValLAB (hidden)
A2: Grups | B2: Sou mes | C2: Mll mes | D2: Acord mesa | E2: Hores extres | F2: trienni | H2: CLT mes | I2: Centre Liquidació | J2: Valor Seg_ Social | K2: Reduccions | M2: Tipus de contractes | N2: Centre Liq. | O2: % QP | P2: % RETRIB. | Q2: Indemnització
A3: 1 | B3: 2650.1 | C3: 17.63 | D3: 8.58 | E3: 11.54 | F3: 69.47 | G3: A | H3: 2958.17 | I3: 005-A | J3: 0.309 | K3: 1 | M3: LABORAL INDEFINIT | N3: 005-A | O3: 0.3215 | P3: 1 | Q3: no
A4: 2 | B4: 2306.98 | C4: 17.26 | D4: 8.58 | E4: 10.33 | F4: 58.11 | G4: A0 | H4: 2748.75 | I4: 006-A | J4: 0.321 | K4: 0.75 | M4: TEMPORAL FORMATIU PER A LA PRÀCTICA PROFESSIONAL | N4: 005-A | O4: 0.3215 | P4: 1 | Q4: no
A5: 3 | B5: 2018.71 | C5: 17.62 | D5: 8.58 | E5: 9.12 | F5: 58.11 | G5: A1-no utilitzar | H5: 2616.09 | I5: 007-A | J5: 0.321 | K5: 0.6 | M5: TEMPORAL VINCULAT A PROGRAMES FINANÇATS PER FONS EUROPEUS TC (35h) | N5: 006-A | O5: 0.3335 | P5: 1 | Q5: si
A6: 4 | B6: 1671.9 | C6: 17.55 | D6: 8.58 | E6: 7.6 | F6: 58.11 | G6: B | H6: 2428.11 | I6: 005-D | J6: 0.366 | M6: TEMPORAL VINCULAT A PROGRAMES FINANÇATS PER FONS EUROPEUS TP (< 35h) | N6: 007-A | O6: 0.3335 | P6: 1 | Q6: si
G7: B0 | H7: 2371.27 | I7: 006-D | J7: 0.387
G8: B1 -no utilizar | I8: 007-D | J8: 0.388
G9: C | H9: 2134.12 | I9: 005-80 | J9: 0.309
G10: C0 | H10: 1799.21 | I10: 006-80 | J10: 0.321
G11: D | H11: 1573.78 | I11: 007-80 | J11: 0.331
G12: E | H12: 1195.01 | I12: 001-A | J12: 0.307
A13: retribucions actualitzades amb l'increment març 2026 | G13: F | H13: 1150.39 | I13: 002-A | J13: 0.252
G14: G | H14: 993.5
G15: H | H15: 881.28
G16: I | H16: 773.12 | M16: Base màx.cotització 2025 | N16: 4909.5
G17: J | H17: 656.78
G18: K | H18: 530.13 | L18: Retribucions
G19: L | H19: 515.17 | L19: Grup
G20: M | H20: 474.7 | L20: 1
G21: M1-sols PQS | H21: 418.08 | L21: CLT | M21: Sou | N21: Millora | O21: Hora | P21: Acord mesa
G22: N | H22: 387.41 | L22: 26 | M22: =CHOOSE(L20,B3,B4,B5,B6) -> 2650.1 | N22: =CHOOSE(L20,C3,C4,C5,C6) -> 17.63 | O22: =CHOOSE(L20,E3,E4,E5,E6) -> 11.54 | P22: =CHOOSE(L20,D3,D4,D5,D6) -> 8.58
G23: Ñ | H23: 366.21 | L23: Centre de Liquidació-Epígraf
G24: O | H24: 320.73 | L24: 1 | M24: =INDEX(H3:H32,L22) -> 170.58
G25: O1-sols PQS | L25: Reducció de retribucions (contracte en pràctiques) | N25: % corresponent
G26: P | H26: 249.05 | L26: =L24 -> 1 | M26: =INDEX(N3:N14,L24) -> 005-A | N26: =INDEX(O3:O6,L24) -> 0.3215
G27: Q | H27: 184.26
G28: R | H28: 170.58 | M28: =INDEX(P3:P6,L26) -> 1
G29: S | H29: 151.82
G30: T | H30: 122.06
G31: U | H31: 105.69
G32: V | H32: 49.61
A36: 2022-11-01
D37: Grup | J37: Grup
D38: 1 | E38: 2 | F38: 3 | G38: 4 | J38: 1 | K38: 2 | L38: 3 | M38: 4
A39: Sou base | D39: 2401.09 | E39: 2090.21 | F39: 1829.02 | G39: 1514.8 | I39: P.Perillositat | J39: 241.88 | K39: 201.6 | L39: 170.71 | M39: 130.88
A40: Millora | D40: 15.96 | E40: 15.62 | F40: 15.95 | G40: 15.89 | I40: Triennis | J40: 62.94 | K40: 52.64 | L40: 52.64 | M40: 52.64
A41: Acord Mesa universitats | D41: 7.74 | E41: 7.74 | F41: 7.74 | G41: 7.74 | I41: Hores extres | J41: 11.54 | K41: 10.33 | L41: 9.12 | M41: 7.6
A43: Complement de lloc de treball | B43: A | C43: 2680.21
B44: A0 | C44: 2490.45
B45: A1* | C45: 2370.26
B46: B | C46: 2199.96
B47: B0 | C47: 2148.44
B48: C | C48: 1933.59
B49: C0 | C49: 1630.12
B50: D | C50: 1425.9
B51: E | C51: 1082.72
B52: F | C52: 1042.3
B53: G | C53: 900.15
B54: H | C54: 798.46
B55: I | C55: 700.47
B56: J | C56: 595.05
B57: K | C57: 480.32
B58: L | C58: 466.76
B59: M | C59: 430.09
B60: M1* | C60: 378.76
B61: N | C61: 351
B62: Ñ | C62: 331.8
B63: O | C63: 290.59
B64: P | C64: 225.66
B65: Q | C65: 166.94
B66: R | C66: 154.55
B67: S | C67: 137.55
B68: T | C68: 110.59
B69: U | C69: 95.76
B70: V | C70: 44.94

Sheet CONTRACTES (hidden)
A3: CONTRCTES PSR
A4: CODI | B4: DURADA | C4: TIPUS | D4: DEDICACIÓ | E4: INDEMNITZACIÓ | F4: RETRIBUCIONS | G4: QUOTA PATRONAL | H4: no consta la indemnització. Pendent decissió institucional per incrementar un % del fons de contitngència
A5: 100 | B5: INDEFINIT | C5: D’ACTIVITATS CIENTIFICOTÈCNIQUES (PROJECTES CTT) | D5: TEMPS COMPLET | E5: 20 días, pero no se contempla | F5: 1 | H5: no consta la indemnització. Pendent decissió institucional per incrementar un % del fons de contitngència
A6: 200 | B6: INDEFINIT | C6: D’ACTIVITATS CIENTIFICOTÈCNIQUES (PROJECTES CTT) | D6: TEMPS PARCIAL | E6: 20 días, pero no se contempla | F6: 1 | H6: no consta la indemnització. Pendent decissió institucional per incrementar un % del fons de contitngència
A7: 100 | B7: INDEFINIT | C7: ALTRES PROJECTES QUE NO SIGUIN DE RECERCA | D7: TEMPS COMPLET | E7: 20 días, pero no se contempla | F7: 1 | H7: no consta la indemnització. Pendent decissió institucional per incrementar un % del fons de contitngència
A8: 200 | B8: INDEFINIT | C8: ALTRES PROJECTES QUE NO SIGUIN DE RECERCA | D8: TEMPS PARCIAL | E8: 20 días, pero no se contempla | F8: 1
A9: 406 | B9: TEMPORAL | C9: VINCULAT A PROGRAMES FINANÇATS PER FONS EUROPEUS | D9: TEMPS COMPLET | E9: 12 | F9: 1
A10: 506 | B10: TEMPORAL | C10: VINCULAT A PROGRAMES FINANÇATS PER FONS EUROPEUS | D10: TEMPS PARCIAL | E10: 12 | F10: 1
A11: 420 | B11: TEMPORAL | C11: FORMATIU PER A LA PRÀCTICA PROFESSIONAL | D11: TEMPS COMPLET | E11: no | F11: 1
A12: 520 | B12: TEMPORAL | C12: FORMATIU PER A LA PRÀCTICA PROFESSIONAL | D12: TEMPS PARCIAL | E12: no | F12: 1

Sheet calcul dies (hidden)
A1: CALCULS DIES LABORALS NO TOPATS
A3: MERITACIÓ ARROSEGAMENT PAGUES LABORALS NO TOPATS | E3: CÀLCUL DIES PRÒRROGA
B4: DATA INICI | C4: DATA FI | F4: DIA | G4: MES | H4: ANY | J4: dif mesos | K4: dif dies | L4: total mesos | M4: dies | N4: total dies
A5: PRORROGA | B5: ='LABORALS '!B6 -> 2025-10-01 | C5: ='LABORALS '!E5 -> 2026-12-31 | E5: INICI PRORROGA | F5: =DAY(B5) -> 1 | G5: =MONTH(B5) -> 10 | H5: =YEAR(B5) -> 2025 | J5: =IF(F5>1,-1,0) -> 0 | K5: =IF(F5=1,-M5,0) -> -31 | L5: =IF(H5=H6,G6-G5+1,13-G5+G6+(H6-H5-1)*12)+J5+J6 -> 15 | M5: =IF(G5=1,31-F5,IF(G5=2,28-F5,IF(G5=3,31-F5,IF(G5=4,30-F5,IF(G5=5,31-F5,IF(G5=6,30-F5,IF(G5=7,31-F5,IF(G5=8,31-F5,IF(G5=9,30-F5,IF(G5=10,31-F5,IF(G5=11,30-F5,IF(G5=12,31-F5))))))))))))+1 -> 31 | N5: =SUM(K5+M5+M6) -> 0
E6: FI VINCULACIÓ | F6: =DAY(C5) -> 31 | G6: =MONTH(C5) -> 12 | H6: =YEAR(C5) -> 2026 | J6: =IF(AND(G6=1,F6=31),0,IF(AND(G6=2,28=F6),0,IF(AND(G6=3,31=F6),0,IF(AND(G6=4,30=F6),0,IF(AND(G6=5,31=F6),0,IF(AND(G6=6,30=F6),0,IF(AND(G6=7,31=F6),0,IF(AND(G6=8,31=F6),0,IF(AND(G6=9,30=F6),0,IF(AND(G6=10,31=F6),0,IF(AND(G6=11,30=F6),0,IF(AND(G6=12,31=F6),0,-1)))))))))))) -> 0 | M6: =IF(AND(G6=1,F6<>31),F6,IF(AND(G6=2,28<>F6),F6,IF(AND(G6=3,31<>F6),F6,IF(AND(G6=4,30<>F6),F6,IF(AND(G6=5,31<>F6),F6,IF(AND(G6=6,30<>F6),F6,IF(AND(G6=7,31<>F6),F6,IF(AND(G6=8,31<>F6),F6,IF(AND(G6=9,30<>F6),F6,IF(AND(G6=10,31<>F6),F6,IF(AND(G6=11,30<>F6),F6,IF(AND(G6=12,31<>F6),F6,0)))))))))))) -> 0
